fUSD/lending_fUSD_20240528
["ID","MTS","AMOUNT","RATE_DAILY","PERIOD"]
[328141954,1716930691043,-647.0,0.0003041,2]
[328141955,1716930691052,-500.0,0.0003041,2]
[328141956,1716930691063,-1101.55,0.0003041,2]
[328141957,1716930691072,-5271.34,0.0003041,2]
[328141958,1716930691082,-896.38,0.0003041,2]
[328141959,1716930691092,-4085.09,0.0003041,2]
[328141960,1716930691102,-500.0,0.0003041,2]
[328141961,1716930691111,-500.0,0.0003041,2]
[328141962,1716930691121,-3085.09,0.0003041,2]
[328141963,1716930691130,-1027.97,0.0003041,2]
[328141964,1716930691139,-678.18,0.0003041,2]
[328141965,1716930691149,-607.8,0.0003041,2]
[328141966,1716930691158,-500.0,0.0003041,2]
[328141967,1716930691168,-707.12,0.0003041,2]
[328141968,1716930691177,-2974.94,0.0003041,2]
[328141969,1716930691187,-1217.15,0.0003041,2]
[328141970,1716930691196,-1190.26,0.0003041,2]
[328141971,1716930691206,-592.19,0.0003041,2]
[328141972,1716930691215,-500.0,0.0003041,2]
[328141973,1716930691224,-4371.46,0.0003041,2]
[328141975,1716930691234,-1044.37,0.0003041,2]
[328141976,1716930691243,-500.0,0.0003041,2]
[328141977,1716930691253,-500.0,0.0003041,2]
[328141978,1716930691263,-513.35,0.0003041,2]
[328141979,1716930691272,-1474.98,0.0003041,2]
[328141980,1716930691281,-500.0,0.0003041,2]
[328141981,1716930691291,-500.0,0.0003041,2]
[328141982,1716930691300,-3176.31,0.0003041,2]
[328141983,1716930691313,-687.58,0.0003041,2]
[328141984,1716930691326,-3513.06,0.0003041,2]
[328141985,1716930691336,-576.75,0.0003041,2]
[328141986,1716930691346,-705.7,0.0003041,2]
[328141987,1716930691355,-500.0,0.0003041,2]
[328141988,1716930691366,-2985.26352396,0.00030444,7]
[328141989,1716930691376,-924.31299125,0.00030444,7]
[328141990,1716930691385,-157.052905,0.00030448,36]
[328141991,1716930691396,-500.0,0.00030494,10]
[328141992,1716930691407,-21456.103871,0.000305,2]
[328141993,1716930691417,-1500.0,0.00030537,2]
[328141994,1716930691427,-314.63886706,0.00030584,2]
[328141995,1716930691436,-1500.0,0.00030673,2]
[328141996,1716930691446,-155.092716,0.00030676,7]
[328141997,1716930691455,-8131.27129557,0.00030684,5]
[328141998,1716930691465,-500.0,0.00030684,2]
[328141999,1716930691474,-500.0,0.00030684,2]
[328142000,1716930691484,-909.32,0.00030684,2]
[328142001,1716930691493,-226.86097971,0.00030684,2]
[328142002,1716930691502,-500.0,0.00030684,2]
[328142003,1716930691512,-594.79,0.00030684,2]
[328142004,1716930691521,-429.24542357,0.00030684,2]
[328142005,1716930691530,-569.9,0.00030684,2]
[328142006,1716930691539,-500.0,0.00030684,2]
[328142007,1716930691548,-500.0,0.00030684,2]
[328142008,1716930691558,-500.0,0.00030684,2]
[328142009,1716930691568,-967.79,0.00030684,2]
[328142010,1716930691577,-500.0,0.00030684,2]
[328142011,1716930691586,-1363.1,0.00030684,2]
[328142012,1716930691595,-667.3,0.00030684,2]
[328142013,1716930691604,-500.0,0.00030684,2]
[328142014,1716930691614,-500.0,0.00030684,2]
[328142015,1716930691623,-500.0,0.00030684,2]
[328142016,1716930691633,-813.82,0.00030684,2]
[328142017,1716930691642,-670.95,0.00030684,2]
[328142018,1716930691651,-500.0,0.00030684,2]
[328142019,1716930691661,-682.1,0.00030684,2]
[328142020,1716930691670,-613.37,0.00030684,2]
[328142021,1716930691680,-409.52215312,0.00030684,2]
[328142022,1716930691689,-870.5,0.00030684,2]
[328142023,1716930691699,-500.0,0.00030684,2]
[328142024,1716930691709,-746.34,0.00030684,2]
[328142025,1716930691718,-500.0,0.00030684,2]
[328142026,1716930691728,-500.0,0.00030684,2]
[328142027,1716930691737,-500.0,0.00030684,2]
[328142028,1716930691747,-613.05,0.00030684,2]
[328142029,1716930691756,-758.6,0.00030684,2]
[328142030,1716930691765,-500.0,0.00030684,2]
[328142031,1716930691774,-500.0,0.00030684,2]
[328142032,1716930691783,-500.0,0.00030684,2]
[328142033,1716930691793,-527.93,0.00030684,2]
[328142034,1716930691803,-535.29,0.00030684,2]
[328142035,1716930691814,-891.34,0.00030684,2]
[328142036,1716930691823,-500.0,0.00030684,2]
[328142037,1716930691832,-556.26,0.00030684,2]
[328142038,1716930691842,-500.0,0.00030684,2]
[328142039,1716930691851,-617.75,0.00030684,2]
[328142040,1716930691861,-500.0,0.00030684,2]
[328142041,1716930691871,-655.52,0.00030684,2]
[328142042,1716930691880,-982.73,0.00030684,2]
[328142043,1716930691890,-500.0,0.00030684,2]
[328142044,1716930691900,-500.0,0.00030684,2]
[328142045,1716930691910,-490.14368495,0.00030684,2]
[328142046,1716930691920,-500.0,0.00030684,2]
[328142047,1716930692046,-879.75,0.00030684,2]
[328142048,1716930692056,-600.48334947,0.00030684,2]
[328142049,1716930692067,-500.0,0.00030684,2]
[328142050,1716930692077,-154.00349638,0.00030684,2]
[328142051,1716930692087,-500.0,0.00030684,2]
[328142052,1716930692097,-598.93,0.00030684,2]
[328142053,1716930692108,-607.01,0.00030684,2]
[328142054,1716930692118,-869.48,0.00030684,2]
[328142055,1716930692128,-500.0,0.00030684,2]
[328142056,1716930692139,-515.25,0.00030684,2]
[328142057,1716930692148,-500.0,0.00030684,2]
[328142058,1716930692158,-501.39,0.00030684,2]
[328142059,1716930692168,-500.0,0.00030684,2]
[328142060,1716930692178,-500.0,0.00030684,2]
[328142061,1716930692187,-500.0,0.00030684,2]
[328142062,1716930692198,-500.0,0.00030684,2]
[328142063,1716930692207,-500.0,0.00030684,2]
[328142064,1716930692217,-500.0,0.00030684,2]
[328142065,1716930692227,-500.0,0.00030684,2]
[328142066,1716930692237,-500.0,0.00030684,2]
[328142067,1716930692247,-1260.25,0.00030684,2]
[328142068,1716930692256,-500.0,0.00030684,2]
[328142069,1716930692266,-500.0,0.00030684,2]
[328142070,1716930692276,-554.17,0.00030684,2]
[328142071,1716930692286,-1185.96,0.00030684,2]
[328142072,1716930692295,-500.0,0.00030684,2]
[328142073,1716930692305,-172.94,0.00030684,2]
[328142074,1716930692318,-500.0,0.00030684,2]
[328142075,1716930692327,-500.0,0.00030684,2]
[328142076,1716930692337,-500.0,0.00030684,2]
[328142077,1716930692347,-500.0,0.00030684,2]
[328142078,1716930692357,-500.0,0.00030684,2]
[328142079,1716930692367,-500.0,0.00030684,2]
[328142080,1716930692376,-500.0,0.00030684,2]
[328142081,1716930692385,-284.51960198,0.00030684,2]
[328142082,1716930692398,-512.07,0.00030684,2]
[328142083,1716930692408,-500.0,0.00030684,2]
[328142084,1716930692417,-500.0,0.00030684,2]
[328142085,1716930692426,-500.0,0.00030684,2]
[328142086,1716930692435,-577.36,0.00030684,2]
[328142087,1716930692444,-500.0,0.00030684,2]
[328142088,1716930692454,-500.0,0.00030684,2]
[328142089,1716930692463,-544.23,0.00030684,2]
[328142090,1716930692472,-917.76,0.00030684,2]
[328142091,1716930692482,-500.0,0.00030684,2]
[328142092,1716930692491,-500.0,0.00030684,2]
[328142093,1716930692500,-715.45,0.00030684,2]
[328142094,1716930692509,-504.89,0.00030684,2]
[328142095,1716930692518,-500.0,0.00030684,2]
[328142096,1716930692527,-500.0,0.00030684,2]
[328142097,1716930692536,-500.0,0.00030684,2]
[328142098,1716930692545,-500.0,0.00030684,2]
[328142099,1716930692554,-611.87,0.00030684,2]
[328142100,1716930692565,-824.89,0.00030684,2]
[328142101,1716930692574,-500.0,0.00030684,2]
[328142102,1716930692583,-500.0,0.00030684,2]
[328142103,1716930692593,-739.81,0.00030684,2]
[328142104,1716930692603,-500.0,0.00030684,2]
[328142105,1716930692613,-500.0,0.00030684,2]
[328142106,1716930692623,-1320.63,0.00030684,2]
[328142107,1716930692632,-500.0,0.00030684,2]
[328142108,1716930692642,-1793.48,0.00030684,2]
[328142109,1716930692653,-1192.64,0.00030684,2]
[328142110,1716930692662,-542.03970276,0.00030684,2]
[328142111,1716930692671,-500.0,0.00030684,2]
[328142112,1716930692680,-850.59,0.00030684,2]
[328142113,1716930692690,-550.9,0.00030684,2]
[328142114,1716930692699,-656.92,0.00030684,2]
[328142115,1716930692708,-9315.09,0.00030684,2]
[328142116,1716930692717,-806.35,0.00030684,2]
[328142117,1716930692727,-500.0,0.00030684,2]
[328142118,1716930692737,-15327.51,0.00030684,2]
[328142119,1716930692746,-635.68,0.00030684,2]
[328142120,1716930692756,-3419.04,0.00030684,2]
[328142121,1716930692766,-1271.68,0.00030684,2]
[328142122,1716930692775,-525.9,0.00030684,2]
[328142123,1716930692785,-1237.95,0.00030684,2]
[328142124,1716930692794,-5036.02,0.00030684,2]
[328142125,1716930692803,-2402.16,0.00030684,2]
[328142126,1716930692814,-583.74,0.00030684,2]
[328142127,1716930692823,-1081.68,0.00030684,2]
[328142128,1716930692833,-500.0,0.00030684,2]
[328142129,1716930692842,-2135.42,0.00030684,2]
[328142130,1716930692852,-500.0,0.00030684,2]
[328142131,1716930692862,-500.0,0.00030684,2]
[328142132,1716930692871,-500.0,0.00030684,2]
[328142133,1716930692881,-500.0,0.00030684,2]
[328142134,1716930692890,-874.24,0.00030684,2]
[328142135,1716930692899,-832.12,0.00030684,2]
[328142136,1716930692909,-1494.87,0.00030684,2]
[328142137,1716930692919,-889.71,0.00030684,2]
[328142138,1716930692928,-588.22,0.00030684,2]
[328142139,1716930692937,-753.43,0.00030684,2]
[328142140,1716930692946,-500.0,0.00030684,2]
[328142141,1716930692956,-656.49,0.00030684,2]
[328142142,1716930692966,-1040.11,0.00030684,2]
[328142143,1716930692976,-5379.01,0.00030684,2]
[328142144,1716930692986,-1151.4,0.00030684,2]
[328142145,1716930692995,-657.54,0.00030684,2]
[328142146,1716930693005,-2503.88,0.00030684,2]
[328142147,1716930693014,-500.0,0.00030684,2]
[328142148,1716930693023,-500.0,0.00030684,2]
[328142149,1716930693033,-992.19,0.00030684,2]
[328142150,1716930693042,-523.58,0.00030684,2]
[328142151,1716930693051,-500.0,0.00030684,2]
[328142152,1716930693061,-591.51,0.00030684,2]
[328142153,1716930693071,-2469.11,0.00030684,2]
[328142154,1716930693081,-500.0,0.00030684,2]
[328142155,1716930693091,-604.6,0.00030684,2]
[328142156,1716930693101,-500.0,0.00030684,2]
[328142157,1716930693110,-1881.26,0.00030684,2]
[328142158,1716930693119,-1071.3,0.00030684,2]
[328142159,1716930693128,-1270.47,0.00030684,2]
[328142160,1716930693137,-8259.77,0.00030684,2]
[328142161,1716930693146,-500.0,0.00030684,2]
[328142162,1716930693155,-421.11465621,0.00030684,2]
[328142163,1716930693164,-1123.23,0.00030684,2]
[328142164,1716930693173,-2563.92,0.00030684,2]
[328142165,1716930693183,-500.0,0.00030684,2]
[328142166,1716930693192,-1027.88,0.00030684,2]
[328142167,1716930693201,-772.72,0.00030684,2]
[328142168,1716930693211,-887.31,0.00030684,2]
[328142169,1716930693220,-914.87,0.00030684,2]
[328142170,1716930693228,-4971.2,0.00030684,2]
[328142171,1716930693238,-1127.13,0.00030684,2]
[328142172,1716930693247,-571.26,0.00030684,2]
[328142173,1716930693256,-500.0,0.00030684,2]
[328142174,1716930693265,-590.27,0.00030684,2]
[328142175,1716930693274,-500.0,0.00030684,2]
[328142176,1716930693283,-606.32,0.00030684,2]
[328142177,1716930693292,-824.0,0.00030684,2]
[328142178,1716930693302,-500.0,0.00030684,2]
[328142179,1716930693311,-853.64,0.00030684,2]
[328142180,1716930693325,-745.85,0.00030684,2]
[328142181,1716930693334,-585.71,0.00030684,2]
[328142182,1716930693343,-1137.45,0.00030684,2]
[328142183,1716930693353,-539.51,0.00030684,2]
[328142184,1716930693363,-1448.06,0.00030684,2]
[328142185,1716930693373,-2302.76,0.00030684,2]
[328142186,1716930693382,-3336.18,0.00030684,2]
[328142187,1716930693392,-500.0,0.00030684,2]
[328142188,1716930693401,-1236.12,0.00030684,2]
[328142189,1716930693411,-500.0,0.00030684,2]
[328142190,1716930693420,-500.0,0.00030684,2]
[328142191,1716930693429,-885.34,0.00030684,2]
[328142192,1716930693438,-602.93,0.00030684,2]
[328142193,1716930693446,-1036.79,0.00030684,2]
[328142194,1716930693456,-13852.98,0.00030684,2]
[328142195,1716930693465,-1313.69,0.00030684,2]
[328142196,1716930693474,-1592.22,0.00030684,2]
[328142197,1716930693484,-916.61,0.00030684,2]
[328142198,1716930693494,-1158.67,0.00030684,2]
[328142199,1716930693504,-2650.73,0.00030684,2]
[328142200,1716930693514,-500.0,0.00030684,2]
[328142201,1716930693524,-4639.4,0.00030684,2]
[328142202,1716930693534,-720.94,0.00030684,2]
[328142203,1716930693544,-850.51,0.00030684,2]
[328142204,1716930693553,-1212.71,0.00030684,2]
[328142205,1716930693563,-1077.58,0.00030684,2]
[328142206,1716930693572,-1305.79,0.00030684,2]
[328142207,1716930693582,-564.13,0.00030684,2]
[328142208,1716930693591,-789.13,0.00030684,2]
[328142209,1716930693600,-928.91,0.00030684,2]
[328142210,1716930693610,-500.0,0.00030684,2]
[328142211,1716930693619,-500.0,0.00030684,2]
[328142212,1716930693629,-920.12,0.00030684,2]
[328142213,1716930693638,-881.35,0.00030684,2]
[328142214,1716930693647,-717.42,0.00030684,2]
[328142215,1716930693657,-500.0,0.00030684,2]
[328142216,1716930693666,-654.73,0.00030684,2]
[328142217,1716930693675,-500.0,0.00030684,2]
[328142218,1716930693685,-3338.18,0.00030684,2]
[328142219,1716930693694,-500.0,0.00030684,2]
[328142220,1716930693703,-500.0,0.00030684,2]
[328142221,1716930693712,-1966.13,0.00030684,2]
[328142222,1716930693722,-570.33,0.00030684,2]
[328142223,1716930693732,-500.0,0.00030684,2]
[328142224,1716930693741,-500.0,0.00030684,2]
[328142225,1716930693751,-500.0,0.00030684,2]
[328142226,1716930693760,-1420.49,0.00030684,2]
[328142227,1716930693872,-1625.97,0.00030684,2]
[328142228,1716930693882,-500.0,0.00030684,2]
[328142229,1716930693891,-647.0,0.00030684,2]
[328142230,1716930693900,-500.0,0.00030684,2]
[328142231,1716930693909,-1101.55,0.00030684,2]
[328142232,1716930693918,-5271.34,0.00030684,2]
[328142233,1716930693928,-896.38,0.00030684,2]
[328142234,1716930693937,-4085.09,0.00030684,2]
[328142235,1716930693946,-500.0,0.00030684,2]
[328142236,1716930693955,-500.0,0.00030684,2]
[328142237,1716930693964,-3085.09,0.00030684,2]
[328142238,1716930693973,-1027.97,0.00030684,2]
[328142239,1716930693982,-678.18,0.00030684,2]
[328142240,1716930693992,-607.8,0.00030684,2]
[328142241,1716930694001,-500.0,0.00030684,2]
[328142242,1716930694010,-707.12,0.00030684,2]
[328142243,1716930694020,-2974.94,0.00030684,2]
[328142244,1716930694029,-1217.15,0.00030684,2]
[328142245,1716930694038,-1190.26,0.00030684,2]
[328142246,1716930694047,-592.19,0.00030684,2]
[328142247,1716930694056,-500.0,0.00030684,2]
[328142248,1716930694065,-4371.46,0.00030684,2]
[328142249,1716930694074,-1044.37,0.00030684,2]
[328142250,1716930694084,-500.0,0.00030684,2]
[328142251,1716930694093,-513.35,0.00030684,2]
[328142252,1716930694102,-1474.98,0.00030684,2]
[328142253,1716930694112,-500.0,0.00030684,2]
[328142254,1716930694121,-500.0,0.00030684,2]
[328142255,1716930694130,-3176.31,0.00030684,2]
[328142256,1716930694139,-687.58,0.00030684,2]
[328142257,1716930694148,-3513.06,0.00030684,2]
[328142258,1716930694158,-576.75,0.00030684,2]
[328142259,1716930694167,-705.7,0.00030684,2]
[328142260,1716930694177,-231.84935652,0.00030684,2]
[328142261,1716930694186,-201.67721427,0.00030684,2]
[328142262,1716930694196,-4196.82841298,0.00030684,2]
[328142263,1716930694206,-152.67997745,0.00030699,7]
[328142264,1716930694215,-150.0,0.000307,6]
[328142265,1716930694225,-157.052905,0.00030748,36]
[328142266,1716930694234,-2985.26352396,0.00030798,7]
[328142267,1716930694246,-924.31299125,0.00030798,7]
[328142268,1716930694255,-24521.261567,0.000308,2]
[328142269,1716930694265,-155.092716,0.000308,7]
[328142270,1716930694274,-150.0,0.00030859,7]
[328142271,1716930694283,-256.51189038,0.00030868,4]
[328142272,1716930694292,-500.0,0.00030958,2]
[328142273,1716930694301,-500.0,0.00030958,2]
[328142274,1716930694311,-909.32,0.00030958,2]
[328142275,1716930694324,-500.0,0.00030958,2]
[328142276,1716930694333,-594.79,0.00030958,2]
[328142277,1716930694342,-569.9,0.00030958,2]
[328142278,1716930694350,-500.0,0.00030958,2]
[328142279,1716930694361,-500.0,0.00030958,2]
[328142280,1716930694371,-500.0,0.00030958,2]
[328142281,1716930694381,-967.79,0.00030958,2]
[328142282,1716930694392,-500.0,0.00030958,2]
[328142283,1716930694402,-1363.1,0.00030958,2]
[328142284,1716930694411,-667.3,0.00030958,2]
[328142285,1716930694420,-587.21016932,0.00030958,2]
[328142286,1716930694429,-500.0,0.00030958,2]
[328142287,1716930694438,-500.0,0.00030958,2]
[328142288,1716930694447,-250.37,0.00030958,2]
[328142289,1716930694456,-813.82,0.00030958,2]
[328142290,1716930694465,-670.95,0.00030958,2]
[328142291,1716930694474,-500.0,0.00030958,2]
[328142292,1716930694483,-682.1,0.00030958,2]
[328142293,1716930694492,-613.37,0.00030958,2]
[328142294,1716930694501,-870.5,0.00030958,2]
[328142295,1716930694512,-500.0,0.00030958,2]
[328142296,1716930694523,-746.34,0.00030958,2]
[328142297,1716930694533,-518.31344114,0.00030958,2]
[328142298,1716930694543,-500.0,0.00030958,2]
[328142299,1716930694554,-500.0,0.00030958,2]
[328142300,1716930694563,-613.05,0.00030958,2]
[328142301,1716930694573,-758.6,0.00030958,2]
[328142302,1716930694582,-151.0,0.00030958,7]
[328142303,1716930694590,-500.0,0.00030958,2]
[328142304,1716930694599,-500.0,0.00030958,2]
[328142305,1716930694608,-192.93154998,0.00030958,2]
[328142306,1716930694617,-527.93,0.00030958,2]
[328142307,1716930694626,-535.29,0.00030958,2]
[328142308,1716930694635,-891.34,0.00030958,2]
[328142309,1716930694644,-244.31189029,0.00030958,2]
[328142310,1716930694653,-556.26,0.00030958,2]
[328142311,1716930694662,-500.0,0.00030958,2]
[328142312,1716930694680,-617.75,0.00030958,2]
[328142313,1716930694695,-500.0,0.00030958,2]
[328142314,1716930694715,-655.52,0.00030958,2]
[328142315,1716930694734,-982.73,0.00030958,2]
[328142316,1716930694751,-500.0,0.00030958,2]
[328142317,1716930694770,-500.0,0.00030958,2]
[328142318,1716930694786,-500.0,0.00030958,2]
[328142319,1716930694800,-879.75,0.00030958,2]
[328142320,1716930694818,-500.0,0.00030958,2]
[328142321,1716930694838,-500.0,0.00030958,2]
[328142322,1716930694853,-598.93,0.00030958,2]
[328142323,1716930694870,-607.01,0.00030958,2]
[328142324,1716930694885,-869.48,0.00030958,2]
[328142325,1716930694901,-500.0,0.00030958,2]
[328142326,1716930694915,-515.25,0.00030958,2]
[328142327,1716930694932,-500.0,0.00030958,2]
[328142328,1716930694948,-501.39,0.00030958,2]
[328142329,1716930694963,-500.0,0.00030958,2]
[328142330,1716930694978,-379.299531,0.00030958,2]
[328142331,1716930694992,-581.15160025,0.00030958,2]
[328142332,1716930695006,-500.0,0.00030958,2]
[328142333,1716930695021,-500.0,0.00030958,2]
[328142334,1716930695036,-500.0,0.00030958,2]
[328142335,1716930695050,-500.0,0.00030958,2]
[328142336,1716930695065,-500.0,0.00030958,2]
[328142337,1716930695080,-1260.25,0.00030958,2]
[328142338,1716930695095,-282.644554,0.00030958,7]
[328142339,1716930695111,-500.0,0.00030958,2]
[328142340,1716930695125,-282.644554,0.00030958,7]
[328142341,1716930695140,-500.0,0.00030958,2]
[328142342,1716930695154,-554.17,0.00030958,2]
[328142343,1716930695170,-1185.96,0.00030958,2]
[328142344,1716930695184,-500.0,0.00030958,2]
[328142345,1716930695198,-172.94,0.00030958,2]
[328142346,1716930695212,-500.0,0.00030958,2]
[328142347,1716930695226,-500.0,0.00030958,2]
[328142348,1716930695240,-355.39877299,0.00030958,2]
[328142349,1716930695253,-500.0,0.00030958,2]
[328142350,1716930695268,-500.0,0.00030958,2]
[328142351,1716930695281,-500.0,0.00030958,2]
[328142352,1716930695295,-500.0,0.00030958,2]
[328142353,1716930695308,-512.07,0.00030958,2]
[328142354,1716930695326,-500.0,0.00030958,2]
[328142355,1716930695340,-500.0,0.00030958,2]
[328142356,1716930695354,-500.0,0.00030958,2]
[328142357,1716930695369,-577.36,0.00030958,2]
[328142358,1716930695383,-223.04357586,0.00030958,2]
[328142359,1716930695399,-500.0,0.00030958,2]
[328142360,1716930695414,-544.23,0.00030958,2]
[328142361,1716930695428,-917.76,0.00030958,2]
[328142362,1716930695441,-500.0,0.00030958,2]
[328142363,1716930695455,-500.0,0.00030958,2]
[328142364,1716930695468,-715.45,0.00030958,2]
[328142365,1716930695483,-504.89,0.00030958,2]
[328142366,1716930695497,-268.062551,0.00030958,7]
[328142367,1716930695510,-500.0,0.00030958,2]
[328142368,1716930695524,-500.0,0.00030958,2]
[328142369,1716930695537,-500.0,0.00030958,2]
[328142370,1716930695551,-500.0,0.00030958,2]
[328142371,1716930695566,-611.87,0.00030958,2]
[328142372,1716930695580,-824.89,0.00030958,2]
[328142373,1716930695593,-500.0,0.00030958,2]
[328142374,1716930695607,-152.079673,0.00030958,7]
[328142375,1716930695621,-500.0,0.00030958,2]
[328142376,1716930695634,-152.079673,0.00030958,7]
[328142377,1716930695648,-739.81,0.00030958,2]
[328142378,1716930695661,-500.0,0.00030958,2]
[328142379,1716930695675,-500.0,0.00030958,2]
[328142380,1716930695689,-1320.63,0.00030958,2]
[328142381,1716930695702,-570.55636458,0.00030958,2]
[328142382,1716930695718,-1793.48,0.00030958,2]
[328142383,1716930695733,-1192.64,0.00030958,2]
[328142384,1716930695747,-306.417667,0.00030958,7]
[328142385,1716930695760,-500.0,0.00030958,2]
[328142386,1716930695775,-306.417667,0.00030958,7]
[328142387,1716930695789,-850.59,0.00030958,2]
[328142388,1716930695804,-550.9,0.00030958,2]
[328142389,1716930695818,-656.92,0.00030958,2]
[328142390,1716930695833,-9315.09,0.00030958,2]
[328142391,1716930695848,-806.35,0.00030958,2]
[328142392,1716930695864,-500.0,0.00030958,2]
[328142393,1716930696036,-15327.51,0.00030958,2]
[328142394,1716930696045,-635.68,0.00030958,2]
[328142395,1716930696055,-3419.04,0.00030958,2]
[328142396,1716930696065,-1271.68,0.00030958,2]
[328142397,1716930696075,-525.9,0.00030958,2]
[328142398,1716930696084,-1237.95,0.00030958,2]
[328142399,1716930696093,-5036.02,0.00030958,2]
[328142400,1716930696103,-2402.16,0.00030958,2]
[328142401,1716930696112,-583.74,0.00030958,2]
[328142402,1716930696122,-1081.68,0.00030958,2]
[328142403,1716930696132,-500.0,0.00030958,2]
[328142404,1716930696141,-500.0,0.00030958,2]
[328142405,1716930696151,-2135.42,0.00030958,2]
[328142406,1716930696161,-500.0,0.00030958,2]
[328142407,1716930696170,-500.0,0.00030958,2]
[328142408,1716930696179,-500.0,0.00030958,2]
[328142409,1716930696188,-874.24,0.00030958,2]
[328142410,1716930696197,-832.12,0.00030958,2]
[328142411,1716930696207,-1494.87,0.00030958,2]
[328142412,1716930696216,-889.71,0.00030958,2]
[328142413,1716930696225,-588.22,0.00030958,2]
[328142414,1716930696235,-753.43,0.00030958,2]
[328142415,1716930696244,-500.0,0.00030958,2]
[328142416,1716930696253,-656.49,0.00030958,2]
[328142417,1716930696262,-1040.11,0.00030958,2]
[328142418,1716930696271,-5379.01,0.00030958,2]
[328142419,1716930696281,-1151.4,0.00030958,2]
[328142420,1716930696290,-657.54,0.00030958,2]
[328142421,1716930696299,-2503.88,0.00030958,2]
[328142422,1716930696309,-500.0,0.00030958,2]
[328142423,1716930696322,-500.0,0.00030958,2]
[328142424,1716930696331,-992.19,0.00030958,2]
[328142425,1716930696340,-523.58,0.00030958,2]
[328142426,1716930696349,-500.0,0.00030958,2]
[328142427,1716930696359,-591.51,0.00030958,2]
[328142428,1716930696368,-2469.11,0.00030958,2]
[328142429,1716930696377,-604.6,0.00030958,2]
[328142430,1716930696386,-500.0,0.00030958,2]
[328142431,1716930696398,-500.0,0.00030958,2]
[328142432,1716930696407,-1881.26,0.00030958,2]
[328142433,1716930696417,-1270.47,0.00030958,2]
[328142434,1716930696426,-1071.3,0.00030958,2]
[328142435,1716930696434,-8259.77,0.00030958,2]
[328142436,1716930696443,-500.0,0.00030958,2]
[328142437,1716930696452,-1123.23,0.00030958,2]
[328142438,1716930696461,-2563.92,0.00030958,2]
[328142439,1716930696470,-500.0,0.00030958,2]
[328142440,1716930696479,-1027.88,0.00030958,2]
[328142441,1716930696489,-772.72,0.00030958,2]
[328142442,1716930696497,-887.31,0.00030958,2]
[328142443,1716930696507,-914.87,0.00030958,2]
[328142444,1716930696516,-4971.2,0.00030958,2]
[328142445,1716930696525,-1127.13,0.00030958,2]
[328142446,1716930696534,-571.26,0.00030958,2]
[328142447,1716930696543,-590.27,0.00030958,2]
[328142448,1716930696552,-589.56726821,0.00030958,2]
[328142449,1716930696561,-500.0,0.00030958,2]
[328142450,1716930696572,-606.32,0.00030958,2]
[328142451,1716930696581,-824.0,0.00030958,2]
[328142452,1716930696591,-500.0,0.00030958,2]
[328142453,1716930696600,-853.64,0.00030958,2]
[328142454,1716930696609,-745.85,0.00030958,2]